bitfinex/quotes_BTCUSD_20240818
["timestamp","ask_amount","ask_price","bid_price","bid_amount"]
[1723939466746,0.62256915,59617.0,59616.0,0.0039064]
[1723939466947,0.64556915,59617.0,59616.0,0.01275694]
[1723939467164,0.64756915,59617.0,59616.0,0.0039064]
[1723939467568,0.72486915,59617.0,59616.0,0.0039064]
[1723939468425,0.76830726,59617.0,59616.0,0.0039064]
[1723939469171,0.72486915,59617.0,59616.0,0.0039064]
[1723939469368,0.7683082,59617.0,59616.0,0.0039064]
[1723939470976,0.8319082,59617.0,59616.0,0.0039064]
[1723939471991,0.8319082,59617.0,59609.0,0.1]
[1723939471992,0.385289,59610.0,59609.0,0.1]
[1723939472168,0.67756248,59610.0,59609.0,0.1]
[1723939473220,0.67756248,59610.0,59609.0,0.101]
[1723939473221,0.68756248,59610.0,59609.0,0.101]
[1723939473425,0.73102009,59610.0,59609.0,0.101]
[1723939473623,0.73402009,59610.0,59609.0,0.101]
[1723939476376,0.8074221,59610.0,59609.0,0.101]
[1723939479838,0.59522009,59610.0,59609.0,0.101]
[1723939480489,0.59522009,59610.0,59609.0,0.10990468]
[1723939486148,0.59522009,59610.0,59609.0,0.11081108]
[1723939487349,0.50162009,59610.0,59609.0,0.11081108]
[1723939487548,0.59522009,59610.0,59609.0,0.11081108]
[1723939489347,0.50162009,59610.0,59609.0,0.11081108]
[1723939489545,0.59522009,59610.0,59609.0,0.19081108]
[1723939490512,0.59522009,59610.0,59609.0,0.11081108]
[1723939490713,0.59322009,59610.0,59609.0,0.19081108]
[1723939491456,0.59322009,59610.0,59609.0,0.11081108]
[1723939491863,0.59522009,59610.0,59609.0,0.11081108]
[1723939492060,0.6547421,59610.0,59609.0,0.11081108]
[1723939492973,0.49762009,59610.0,59609.0,0.11081108]
[1723939493354,0.59122009,59610.0,59609.0,0.11081108]
[1723939493552,0.59122009,59610.0,59609.0,0.1019064]
[1723939493761,0.49762009,59610.0,59609.0,0.1019064]
[1723939493961,0.49762009,59610.0,59609.0,0.11082213]
[1723939493962,0.59122009,59610.0,59609.0,0.11082213]
[1723939494332,0.59122009,59610.0,59609.0,0.1819064]
[1723939494677,0.59122009,59610.0,59609.0,0.19082213]
[1723939495456,0.37296609,59610.0,59609.0,0.19082213]
[1723939495633,0.43602113,59610.0,59609.0,0.25462213]
[1723939497808,0.43602113,59610.0,59609.0,0.2457064]
[1723939498213,0.43602113,59610.0,59609.0,0.25457798]
[1723939499681,0.43702113,59610.0,59609.0,0.25457798]
[1723939499975,0.43602113,59610.0,59609.0,0.25457798]
[1723939502467,0.43902113,59610.0,59609.0,0.25457798]
[1723939502925,0.43602113,59610.0,59609.0,0.2457064]
[1723939503254,0.43602113,59610.0,59609.0,0.11077798]
[1723939503887,0.43602113,59610.0,59609.0,0.25147798]
[1723939504086,0.29849365,59610.0,59609.0,0.25147798]
[1723939505313,0.39914765,59610.0,59609.0,0.25147798]
[1723939505664,0.29794881,59610.0,59609.0,0.25147798]
[1723939507591,0.20434881,59610.0,59609.0,0.25147798]
[1723939507795,0.29794881,59610.0,59609.0,0.25147798]
[1723939509580,0.05445761,59610.0,59609.0,0.25147798]
[1723939509777,0.04445761,59610.0,59609.0,0.25147798]
[1723939510990,0.09478461,59610.0,59609.0,0.25147798]
[1723939512819,0.09478461,59610.0,59609.0,0.2426064]
[1723939513020,0.09478461,59610.0,59609.0,0.25147114]
[1723939513629,0.09560961,59610.0,59609.0,0.25147114]
[1723939514306,0.19626361,59610.0,59609.0,0.25147114]
[1723939514650,0.09560961,59610.0,59609.0,0.25147114]
[1723939515421,0.19626361,59610.0,59609.0,0.25147114]
[1723939515650,0.19626361,59610.0,59609.0,0.11077114]
[1723939515651,0.44239109,59610.0,59609.0,0.11077114]
[1723939515871,0.48844509,59610.0,59609.0,0.11077114]
[1723939516092,0.48844509,59610.0,59609.0,0.1019064]
[1723939516305,0.48844509,59610.0,59609.0,0.11076782]
[1723939516508,0.48844509,59610.0,59609.0,0.01076782]
[1723939516706,0.48844509,59610.0,59609.0,0.0019064]
[1723939516707,0.56904509,59610.0,59609.0,0.0019064]
[1723939516932,0.57104509,59610.0,59609.0,0.0019064]
[1723939517450,0.56704509,59610.0,59609.0,0.0019064]
[1723939519468,0.48844509,59610.0,59609.0,0.0019064]
[1723939520286,0.49244509,59610.0,59609.0,0.0019064]
[1723939521178,0.48244509,59610.0,59609.0,0.0019064]
[1723939523474,0.47844509,59610.0,59609.0,0.0019064]
[1723939526225,0.47844509,59610.0,59598.0,0.04957045]
[1723939526226,0.72249909,59610.0,59598.0,0.04957045]
[1723939526427,0.55532748,59599.0,59598.0,0.04957045]
[1723939526582,0.256692,59596.0,59595.0,0.0009075]
[1723939526783,0.54427056,59596.0,59595.0,0.0009075]
[1723939527385,0.61977056,59596.0,59595.0,0.0009075]
[1723939527883,0.72044756,59596.0,59595.0,0.0009075]
[1723939528041,0.82344756,59596.0,59595.0,0.0009075]
[1723939528254,0.82344756,59596.0,59595.0,0.0019075]
[1723939528828,0.82044756,59596.0,59595.0,0.0019075]
[1723939529795,0.82044756,59596.0,59595.0,0.0009075]
[1723939530021,0.97504756,59596.0,59595.0,0.0019075]
[1723939530365,0.98904756,59596.0,59595.0,0.0029075]
[1723939530566,1.10833465,59596.0,59595.0,0.0019075]
[1723939530996,1.13633465,59596.0,59595.0,0.0039075]
[1723939531198,0.98904756,59596.0,59595.0,0.0029075]
[1723939531432,0.74084756,59596.0,59595.0,0.0019075]
[1723939531579,0.97504756,59596.0,59595.0,0.0019075]
[1723939531780,0.97504756,59596.0,59595.0,0.0009075]
[1723939531781,0.96104756,59596.0,59595.0,0.0009075]
[1723939532081,1.08636232,59596.0,59595.0,0.0009075]
[1723939532541,0.96104756,59596.0,59595.0,0.0009075]
[1723939532764,0.97504756,59596.0,59595.0,0.0019075]
[1723939533190,0.88554756,59596.0,59595.0,0.0009075]
[1723939533423,0.78487056,59596.0,59595.0,0.0009075]
[1723939533648,0.81287056,59596.0,59595.0,0.0029075]
[1723939534104,0.79887056,59596.0,59595.0,0.0019075]
[1723939534334,0.78487056,59596.0,59595.0,0.0009075]
[1723939534600,0.92811762,59596.0,59595.0,0.0029075]
[1723939535135,0.59267056,59596.0,59595.0,0.0039075]
[1723939535374,0.59267056,59596.0,59595.0,0.0029075]
[1723939535375,0.81287056,59596.0,59595.0,0.0029075]
[1723939535870,0.79887056,59596.0,59595.0,0.0019075]
[1723939536105,0.81287056,59596.0,59595.0,0.0029075]
[1723939536463,0.81287056,59596.0,59595.0,0.0019075]
[1723939536464,0.79887056,59596.0,59595.0,0.0019075]
[1723939536664,0.81287056,59596.0,59595.0,0.0029075]
[1723939536864,0.82687056,59596.0,59595.0,0.0039075]
[1723939537545,0.79887056,59596.0,59595.0,0.0019075]
[1723939537751,0.91930381,59596.0,59595.0,0.0019075]
[1723939538174,0.79887056,59596.0,59595.0,0.0019075]
[1723939538778,0.69487056,59596.0,59595.0,0.0019075]
[1723939539985,0.71087056,59596.0,59595.0,0.0029075]
[1723939540963,0.71287056,59596.0,59595.0,0.0029075]
[1723939541754,0.70887056,59596.0,59595.0,0.0029075]
[1723939541961,0.71087056,59596.0,59595.0,0.0029075]
[1723939542158,0.71187056,59596.0,59595.0,0.0029075]
[1723939542356,0.71287056,59596.0,59595.0,0.0029075]
[1723939543481,0.70887056,59596.0,59595.0,0.0029075]
[1723939543878,0.70887056,59596.0,59595.0,0.1438075]
[1723939543879,0.21047261,59596.0,59595.0,0.1438075]
[1723939544083,0.179015,59596.0,59595.0,0.1438075]
[1723939544282,0.179015,59596.0,59595.0,0.15217108]
[1723939544537,0.279692,59596.0,59595.0,0.15217108]
[1723939544756,0.46124955,59596.0,59595.0,0.15217108]
[1723939545128,0.44724955,59596.0,59595.0,0.0019075]
[1723939545607,0.40039525,59596.0,59595.0,0.0019075]
[1723939545827,0.42239525,59596.0,59595.0,0.0019075]
[1723939546045,0.42839525,59596.0,59595.0,0.0029075]
[1723939546666,0.251697,59595.0,59594.0,0.1388075]
[1723939546867,0.31361133,59595.0,59594.0,0.1388075]
[1723939547210,0.31361133,59595.0,59594.0,0.1471711]
[1723939548459,0.32661133,59595.0,59594.0,0.1481711]
[1723939549225,0.33161133,59595.0,59594.0,0.1481711]
[1723939549435,0.35074908,59595.0,59594.0,0.1481711]
[1723939549640,0.30361133,59595.0,59594.0,0.1481711]
[1723939549909,0.39721133,59595.0,59594.0,0.1481711]
[1723939550124,0.39721133,59595.0,59594.0,0.1491711]
[1723939550125,0.40621133,59595.0,59594.0,0.1491711]
[1723939550466,0.34267049,59595.0,59594.0,0.1490786]
[1723939550668,0.33367049,59595.0,59594.0,0.1490786]
[1723939551389,0.13939149,59595.0,59594.0,0.1490786]
[1723939551595,0.10047716,59595.0,59594.0,0.1490786]
[1723939551885,0.10547716,59595.0,59594.0,0.1490786]
[1723939552291,0.10047716,59595.0,59594.0,0.1490786]
[1723939552743,0.29975616,59595.0,59594.0,0.1490786]
[1723939553170,0.29475616,59595.0,59594.0,0.1490786]
[1723939553486,0.29575616,59595.0,59594.0,0.1490786]
[1723939553683,0.28775616,59595.0,59594.0,0.1480786]
[1723939553888,0.29275616,59595.0,59594.0,0.1480786]
[1723939555014,0.43341988,59595.0,59594.0,0.0092711]
[1723939555244,0.43341988,59595.0,59594.0,0.0009075]
[1723939555440,0.43541988,59595.0,59594.0,0.0092711]
[1723939555643,0.431601,59595.0,59594.0,0.0092711]
[1723939556050,0.432601,59595.0,59594.0,0.0092711]
[1723939556251,0.6841177,59595.0,59594.0,0.0009075]
[1723939556457,0.6861177,59595.0,59594.0,0.0009075]
[1723939557730,0.61778,59595.0,59594.0,0.0009075]
[1723939557882,0.55628,59595.0,59594.0,0.0009075]
[1723939558084,0.338001,59595.0,59594.0,0.0793075]
[1723939558299,0.431601,59595.0,59594.0,0.1429075]
[1723939558666,0.431601,59595.0,59594.0,0.15122577]
[1723939558890,0.431601,59595.0,59594.0,0.15064033]
[1723939558998,0.330922,59595.0,59594.0,0.15064033]
[1723939559203,0.29193728,59595.0,59594.0,0.15064033]
[1723939560050,0.19833728,59595.0,59594.0,0.15064033]
[1723939560868,0.29901628,59595.0,59594.0,0.15064033]
[1723939563516,0.29901628,59595.0,59594.0,0.20098033]
[1723939563517,0.04896316,59595.0,59594.0,0.20098033]
[1723939563928,0.006825,59595.0,59594.0,0.20098033]
[1723939573614,0.005825,59595.0,59594.0,0.20098033]
[1723939573821,0.000825,59595.0,59594.0,0.20098033]
[1723939574026,0.004825,59595.0,59594.0,0.20098033]
[1723939574597,0.004825,59595.0,59594.0,0.30166133]
[1723939575664,0.004825,59595.0,59594.0,0.67793368]
[1723939576066,0.004825,59595.0,59594.0,0.77793368]
[1723939576284,0.000825,59595.0,59594.0,0.77793368]
[1723939576664,0.003825,59595.0,59594.0,0.77793368]
[1723939577007,0.000825,59595.0,59594.0,0.77793368]
[1723939577127,0.001825,59595.0,59594.0,0.78593368]
[1723939577740,0.002825,59595.0,59594.0,0.79293368]
[1723939578027,0.002825,59595.0,59594.0,0.79393368]
[1723939578188,0.000825,59595.0,59594.0,0.78907218]
[1723939578364,0.000825,59595.0,59594.0,0.78807218]
[1723939578773,0.001825,59595.0,59594.0,0.80007218]
[1723939581915,0.001825,59595.0,59594.0,0.89367218]
[1723939583501,0.000825,59595.0,59594.0,0.95284146]
[1723939583701,0.001825,59595.0,59594.0,0.91479737]
[1723939584102,0.001825,59595.0,59594.0,0.97381992]
[1723939584382,0.002825,59595.0,59594.0,0.97381992]
[1723939584516,0.002825,59595.0,59594.0,0.95269473]
[1723939584717,0.002825,59595.0,59594.0,0.97381956]
[1723939584940,0.002825,59595.0,59594.0,0.97046375]
[1723939586874,0.002825,59595.0,59594.0,0.96959202]
[1723939587255,0.002825,59595.0,59594.0,0.95945352]
[1723939587456,0.002825,59595.0,59594.0,0.81583097]
[1723939588579,0.002825,59595.0,59594.0,0.81583139]
[1723939588981,0.002825,59595.0,59594.0,0.79470614]
[1723939589139,0.002825,59595.0,59594.0,0.81583271]
[1723939591152,0.002825,59595.0,59594.0,0.71515171]
[1723939591414,0.002825,59595.0,59594.0,0.44291617]
[1723939591548,0.002825,59595.0,59594.0,0.4217896]
[1723939591728,0.002825,59595.0,59594.0,0.44291584]
[1723939592133,0.002825,59595.0,59594.0,0.54359684]
[1723939594697,0.002825,59595.0,59594.0,0.81583238]
[1723939597187,0.002825,59595.0,59594.0,0.85115179]
[1723939597579,0.002825,59595.0,59594.0,0.90116993]
[1723939598618,0.002825,59595.0,59594.0,0.90207344]
[1723939599974,0.002825,59595.0,59594.0,0.8520553]
[1723939600402,0.002825,59595.0,59594.0,0.93710724]
[1723939600822,0.002825,59595.0,59594.0,0.80563837]
[1723939600985,0.002825,59595.0,59594.0,0.86207542]
[1723939601184,0.002825,59595.0,59594.0,0.86207605]
[1723939601532,0.002825,59595.0,59594.0,0.93710326]
[1723939602028,0.002825,59595.0,59594.0,1.30937701]
[1723939602259,0.002825,59595.0,59594.0,1.25293933]
[1723939602464,0.002825,59595.0,59594.0,1.23434816]
[1723939603394,0.002825,59595.0,59594.0,1.33438444]
[1723939604441,0.002825,59595.0,59594.0,1.43606544]
[1723939604644,0.002825,59595.0,59594.0,1.33802916]
[1723939604645,1e-08,59595.0,59594.0,1.33802916]
[1723939604815,1e-08,59595.0,59594.0,1.4630784]
[1723939605033,1e-08,59595.0,59594.0,1.34003305]
[1723939605264,1e-08,59595.0,59594.0,1.40442332]
[1723939605824,1e-08,59595.0,59594.0,1.39242332]
[1723939606023,0.000825,59609.0,59608.0,0.390642]
[1723939606247,0.000825,59609.0,59608.0,0.75579654]
[1723939606477,0.000825,59609.0,59608.0,0.76413236]
[1723939607764,0.001825,59609.0,59608.0,0.77413236]
[1723939608798,0.001825,59609.0,59608.0,0.78013236]
[1723939609004,0.000825,59609.0,59608.0,0.77013236]
[1723939609429,0.000825,59609.0,59608.0,0.79113236]
[1723939612075,0.000825,59609.0,59608.0,0.89178936]
[1723939612480,0.000825,59609.0,59608.0,0.92540936]
[1723939612904,0.000825,59609.0,59608.0,0.95616767]
[1723939613110,0.000824,59617.0,59615.0,0.352257]
[1723939613333,0.000824,59617.0,59615.0,0.85805654]
[1723939613561,0.000824,59617.0,59615.0,0.99997305]
[1723939614137,0.000824,59617.0,59615.0,1.00197305]
[1723939614854,0.000824,59617.0,59615.0,1.02307677]
[1723939615435,0.000824,59617.0,59615.0,1.03707677]
[1723939615829,0.000824,59617.0,59615.0,1.04696867]
[1723939616174,0.000824,59617.0,59615.0,1.18706867]
[1723939616408,0.000824,59617.0,59615.0,1.20106867]
[1723939616621,0.000824,59617.0,59615.0,1.57382468]
[1723939616825,0.000824,59617.0,59615.0,1.54582468]
[1723939617231,0.000824,59617.0,59615.0,1.57382468]
[1723939617387,0.000824,59617.0,59615.0,1.57082468]
[1723939617603,0.000824,59617.0,59615.0,1.57382468]
[1723939618181,0.000824,59617.0,59615.0,1.55982468]
[1723939618396,0.000824,59617.0,59615.0,1.54582468]
[1723939618598,0.000824,59617.0,59615.0,1.55982468]
[1723939619499,0.000824,59617.0,59615.0,1.54582468]
[1723939619710,0.000824,59617.0,59615.0,1.53872096]
[1723939619859,0.000824,59617.0,59615.0,1.57382887]
[1723939620054,0.000824,59617.0,59615.0,1.55982887]
[1723939620575,0.000824,59617.0,59615.0,1.57382887]
[1723939621143,0.000824,59617.0,59615.0,1.57582887]
[1723939621485,1e-08,59617.0,59616.0,0.004]
[1723939621697,1e-08,59617.0,59616.0,1.22073732]
[1723939621903,1e-08,59617.0,59616.0,1.35016675]
[1723939622407,1e-08,59617.0,59616.0,1.49793278]
[1723939622613,1e-08,59617.0,59616.0,1.42160491]
[1723939622796,1e-08,59617.0,59616.0,1.47550258]
[1723939623143,1e-08,59617.0,59616.0,1.44503445]
[1723939623347,1e-08,59617.0,59616.0,1.49494897]
[1723939623551,1e-08,59617.0,59616.0,1.37024252]
[1723939624342,1e-08,59617.0,59616.0,1.46996998]
[1723939624512,1e-08,59617.0,59616.0,1.51840814]
[1723939625131,1e-08,59617.0,59616.0,1.43923425]
[1723939625333,1e-08,59617.0,59616.0,1.33950679]
[1723939626043,1e-08,59617.0,59616.0,1.33550679]
[1723939626633,0.0821,59631.0,59616.0,1.33550679]
[1723939626634,0.0821,59631.0,59626.0,0.385814]
[1723939626844,0.0821,59631.0,59626.0,0.65736854]
[1723939627044,0.0821,59631.0,59626.0,0.66549638]
[1723939629437,0.0821,59631.0,59626.0,0.69349638]
[1723939630347,0.0634,59628.0,59626.0,0.59286938]
[1723939630575,0.000824,59635.0,59626.0,0.59286938]
[1723939630576,0.297261,59627.0,59626.0,0.03612784]
[1723939630785,0.297261,59627.0,59626.0,0.02212784]
[1723939630990,0.297261,59627.0,59626.0,0.028]
[1723939631403,0.196636,59627.0,59626.0,0.028]
[1723939631621,0.196636,59627.0,59626.0,0.014]
[1723939632024,0.196636,59627.0,59626.0,0.028]
[1723939632223,0.196636,59627.0,59626.0,0.014]
[1723939632642,0.197636,59627.0,59626.0,0.014]
[1723939632962,0.147324,59627.0,59626.0,0.064313]
[1723939633192,0.147324,59627.0,59626.0,0.05760344]
[1723939633638,0.147324,59627.0,59626.0,0.05860344]
[1723939634012,0.147324,59627.0,59626.0,0.05760344]
[1723939634414,0.147324,59627.0,59626.0,0.06360344]
[1723939634616,0.146324,59627.0,59626.0,0.06360344]
[1723939635095,0.146324,59627.0,59626.0,0.06660344]
[1723939636571,0.146324,59627.0,59626.0,0.16723044]
[1723939637382,0.146324,59627.0,59626.0,0.06660344]
[1723939640866,0.146324,59627.0,59626.0,0.05760344]
[1723939641067,0.082924,59627.0,59626.0,0.06160344]
[1723939641270,0.000824,59627.0,59626.0,0.06160344]
[1723939641472,0.000824,59627.0,59626.0,0.06860344]
[1723939644341,0.000824,59627.0,59626.0,0.26985744]
[1723939646655,0.000824,59627.0,59626.0,0.29095932]
[1723939647972,0.000824,59627.0,59626.0,0.2909589]
[1723939648255,0.000824,59627.0,59626.0,0.30094375]
[1723939649697,0.000824,59627.0,59626.0,0.37934375]
[1723939649931,0.000824,59627.0,59626.0,0.47934375]
[1723939650547,0.000824,59627.0,59626.0,0.47934297]
[1723939650767,0.000824,59627.0,59626.0,0.47234297]
[1723939651009,0.000824,59627.0,59626.0,0.44724229]
[1723939651224,0.000824,59627.0,59626.0,0.47334297]
[1723939651855,0.000824,59627.0,59626.0,0.47934297]
[1723939652070,0.000824,59627.0,59626.0,0.81452451]
[1723939652280,0.000824,59627.0,59626.0,0.87251841]
[1723939652486,0.000824,59627.0,59626.0,0.85614451]
[1723939652730,0.000824,59627.0,59626.0,0.89815356]
[1723939653133,0.000824,59627.0,59626.0,0.90715356]
[1723939653333,0.000824,59627.0,59626.0,0.71574451]
[1723939653572,0.000824,59627.0,59626.0,0.70674451]
[1723939653740,0.000824,59627.0,59626.0,0.69574451]
[1723939653917,0.000824,59627.0,59626.0,0.70974451]
[1723939654136,0.000824,59627.0,59626.0,1.1708343]
[1723939657187,0.000824,59627.0,59626.0,1.16084945]
[1723939658116,0.000824,59627.0,59626.0,1.08585859]
[1723939658972,0.000824,59627.0,59626.0,0.98523159]
[1723939659742,0.000824,59627.0,59626.0,0.97123159]
[1723939660147,0.000824,59627.0,59626.0,0.98523159]
[1723939660442,0.000824,59627.0,59626.0,0.97123159]
[1723939660787,0.000824,59627.0,59626.0,0.98523159]
[1723939662141,0.000824,59627.0,59626.0,0.71305005]
[1723939662322,0.138624,59627.0,59626.0,0.09001112]
[1723939662948,0.138624,59627.0,59626.0,0.11922344]
[1723939665567,0.138624,59627.0,59626.0,0.14034331]
[1723939665896,0.138624,59627.0,59626.0,0.11922344]
[1723939666267,0.138624,59627.0,59626.0,0.14034316]
[1723939666689,0.138624,59627.0,59626.0,0.11922344]
[1723939666896,0.138624,59627.0,59626.0,0.08560344]
[1723939667342,0.138624,59627.0,59626.0,0.10672377]
[1723939668251,0.138624,59627.0,59626.0,0.08560344]
[1723939668533,0.000824,59627.0,59626.0,0.20735082]
[1723939669266,0.000824,59627.0,59626.0,0.30797782]
[1723939669420,0.000824,59627.0,59626.0,0.31133163]
[1723939670423,0.000824,59627.0,59626.0,0.3614341]
[1723939671265,0.000824,59627.0,59626.0,0.31133163]
[1723939671470,0.000824,59627.0,59626.0,0.52963862]
[1723939672339,0.000824,59627.0,59626.0,0.47953236]
[1723939672759,0.000824,59627.0,59626.0,0.52964134]
[1723939673299,0.000824,59627.0,59626.0,0.52964186]
[1723939673522,0.000824,59627.0,59626.0,0.48961024]
[1723939674829,0.000824,59627.0,59626.0,0.64217525]
[1723939675231,0.000824,59627.0,59626.0,0.56700847]
[1723939675657,0.000824,59627.0,59626.0,0.64217752]
[1723939676616,0.000824,59627.0,59626.0,1.01429086]
[1723939676849,0.000824,59627.0,59626.0,0.93912181]
[1723939677050,0.000824,59627.0,59626.0,1.03974881]
[1723939677255,0.000824,59627.0,59626.0,1.36185056]
[1723939677881,0.000824,59627.0,59626.0,1.38315678]
[1723939678303,0.000824,59627.0,59626.0,1.39715678]
[1723939678713,0.000824,59627.0,59626.0,1.397154]
[1723939679331,0.000824,59627.0,59626.0,1.34784784]
[1723939680362,0.000824,59627.0,59626.0,1.36184784]
[1723939681432,0.000824,59627.0,59626.0,1.23655795]
[1723939683216,0.000824,59627.0,59626.0,1.36181723]
[1723939684085,0.000824,59627.0,59626.0,1.23655795]
[1723939684309,0.000824,59627.0,59626.0,1.36181723]
[1723939684460,0.000824,59627.0,59626.0,1.08588007]
[1723939684803,0.000824,59627.0,59626.0,0.98486804]
[1723939685435,0.000824,59627.0,59626.0,0.86351018]
[1723939685648,0.000824,59627.0,59626.0,0.98524758]
[1723939686091,0.000824,59627.0,59626.0,0.88462622]
[1723939686550,0.066924,59627.0,59626.0,0.88462622]
[1723939687079,0.066924,59627.0,59626.0,0.61244468]
[1723939688082,0.066924,59627.0,59626.0,0.75466959]
[1723939688420,0.066924,59627.0,59626.0,0.67945168]
[1723939689233,0.066924,59627.0,59626.0,0.77972176]
[1723939689635,0.066924,59627.0,59626.0,0.62878295]
[1723939689854,0.144024,59627.0,59626.0,0.10656798]
[1723939690057,0.144024,59627.0,59626.0,0.05640203]
[1723939690425,0.2231196,59627.0,59626.0,0.05640203]
[1723939690624,0.3237446,59627.0,59626.0,0.03529044]
[1723939690830,0.36542641,59627.0,59626.0,0.03529044]
[1723939691223,0.294961,59627.0,59626.0,0.028]
[1723939699227,0.395586,59627.0,59626.0,0.028]
[1723939699405,0.47275769,59627.0,59626.0,0.028]
[1723939699646,0.47175769,59627.0,59626.0,0.028]
[1723939699853,0.54164566,59627.0,59626.0,0.028]
[1723939700049,0.54164566,59627.0,59626.0,0.014]
[1723939700600,0.54164566,59627.0,59626.0,0.026]
[1723939701407,0.47175769,59627.0,59626.0,0.026]
[1723939705303,0.43006802,59627.0,59626.0,0.026]
[1723939712069,0.52356802,59627.0,59626.0,0.026]
[1723939713615,0.245261,59627.0,59626.0,0.026]
[1723939714171,0.245261,59627.0,59626.0,0.03299681]
[1723939721111,0.245261,59627.0,59626.0,0.026]
[1723939721460,0.245261,59627.0,59626.0,0.03299681]
[1723939724322,0.28695171,59627.0,59626.0,0.03299681]
[1723939725013,0.245261,59627.0,59626.0,0.03299681]
[1723939725482,0.28695166,59627.0,59626.0,0.03299681]
[1723939727868,0.28695166,59627.0,59626.0,0.026]
[1723939730284,0.42885166,59627.0,59626.0,0.026]
[1723939730496,0.48479903,59627.0,59626.0,0.026]
[1723939730734,0.42885166,59627.0,59626.0,0.026]
[1723939731819,0.28695166,59627.0,59626.0,0.026]
[1723939732271,0.28695166,59627.0,59626.0,0.0911]
[1723939732479,0.28695166,59627.0,59626.0,0.09845384]
[1723939733844,0.28695166,59627.0,59626.0,0.03335384]
[1723939739433,0.28695166,59627.0,59626.0,0.11185384]
[1723939739637,0.38757666,59627.0,59626.0,0.03335384]
[1723939739860,0.38757666,59627.0,59626.0,0.026]
[1723939740077,0.38757666,59627.0,59626.0,0.03335384]
[1723939740658,0.45205868,59627.0,59626.0,0.03335384]
[1723939740871,0.59695868,59627.0,59626.0,0.026]
[1723939741924,0.59395868,59627.0,59626.0,0.026]
[1723939742576,0.59495868,59627.0,59626.0,0.026]
[1723939742903,0.59395868,59627.0,59626.0,0.026]
[1723939743108,0.79054165,59627.0,59626.0,0.026]
[1723939743308,0.78854165,59627.0,59626.0,0.026]
[1723939743623,0.71858368,59627.0,59626.0,0.026]
[1723939744162,0.61795868,59627.0,59626.0,0.026]
[1723939744530,0.50045868,59627.0,59626.0,0.026]
[1723939744742,0.45205868,59627.0,59626.0,0.026]
[1723939746810,0.45205868,59627.0,59626.0,0.03335384]
[1723939747235,0.45205868,59627.0,59626.0,0.026]
[1723939747437,0.45205868,59627.0,59626.0,0.03335711]
[1723939752038,0.35855868,59627.0,59626.0,0.03335711]
[1723939752254,0.45205868,59627.0,59626.0,0.03335711]
[1723939753105,0.45205868,59627.0,59626.0,0.1015]
[1723939753242,0.45205868,59627.0,59626.0,0.10860164]
[1723939753439,0.38757666,59627.0,59626.0,0.10860164]
[1723939753686,0.28695166,59627.0,59626.0,0.1639]
[1723939753911,0.28695166,59627.0,59626.0,0.17100164]
[1723939756425,0.09282666,59627.0,59626.0,0.17100164]
[1723939756826,0.32899836,59626.0,59622.0,0.050316]
[1723939757174,0.32899836,59626.0,59619.0,0.05018984]
[1723939757175,0.37931136,59626.0,59620.0,0.050318]
[1723939757401,0.37931136,59626.0,59623.0,0.00639153]
[1723939757526,0.37931136,59626.0,59621.0,0.050317]
[1723939758120,0.37931136,59626.0,59622.0,0.02039154]
[1723939758514,0.37931136,59626.0,59622.0,0.00639154]
[1723939759757,0.38031136,59626.0,59622.0,0.00639154]
[1723939759964,0.38031136,59626.0,59624.0,0.0755]
[1723939760368,0.38031136,59626.0,59625.0,0.00639149]
[1723939760863,0.37931136,59626.0,59625.0,0.00639149]
[1723939761290,0.38031136,59626.0,59625.0,0.00639149]
[1723939761605,0.37931136,59626.0,59625.0,0.00639149]
[1723939761856,0.48093836,59626.0,59625.0,0.00639149]
[1723939762004,0.48093836,59626.0,59622.0,0.006]
[1723939762005,0.050315,59625.0,59622.0,0.006]
[1723939762207,0.0935,59623.0,59622.0,0.006]
[1723939762499,0.143816,59623.0,59622.0,0.006]
[1723939762811,0.44457454,59623.0,59622.0,0.006]
[1723939763021,0.58025113,59623.0,59622.0,0.006]
[1723939763271,0.74859424,59623.0,59622.0,0.006]
[1723939763837,0.75059424,59623.0,59622.0,0.006]
[1723939764041,0.2516,59618.0,59617.0,0.0009075]
[1723939764247,0.50325903,59618.0,59617.0,0.0009075]
[1723939764448,0.52334792,59618.0,59617.0,0.0009075]
[1723939764929,0.56507894,59618.0,59617.0,0.0009075]
[1723939765131,0.56807894,59618.0,59617.0,0.0009075]
[1723939765359,0.66871894,59618.0,59617.0,0.0009075]
[1723939765680,0.66871894,59618.0,59617.0,0.0029075]
[1723939765904,0.73579083,59618.0,59617.0,0.0029075]
[1723939766912,0.73579083,59618.0,59617.0,0.0079075]
[1723939767968,0.73679083,59618.0,59617.0,0.0009075]
[1723939768283,0.76879083,59618.0,59617.0,0.0009075]
[1723939768707,0.76779083,59618.0,59617.0,0.0009075]
[1723939768906,0.77179083,59618.0,59617.0,0.0009075]
[1723939770160,0.77279083,59618.0,59617.0,0.0009075]
[1723939770300,0.69871894,59618.0,59617.0,0.0009075]
[1723939770499,0.60421894,59618.0,59617.0,0.0009075]
[1723939770785,0.69771894,59618.0,59617.0,0.0009075]
[1723939775004,0.33807894,59618.0,59617.0,0.0009075]
[1723939775222,0.43157894,59618.0,59617.0,0.0009075]
[1723939775432,0.43157894,59618.0,59617.0,0.1415075]
[1723939775842,0.43157894,59618.0,59617.0,0.14757134]
[1723939776253,0.43157894,59618.0,59617.0,0.08637134]
[1723939777455,0.33093894,59618.0,59617.0,0.08637134]
[1723939778771,0.32293894,59618.0,59617.0,0.08637134]
[1723939778987,0.32693894,59618.0,59617.0,0.08637134]
[1723939779476,0.32593894,59618.0,59617.0,0.08637134]
[1723939779684,0.32693894,59618.0,59617.0,0.08637134]
[1723939781014,0.6559373,59618.0,59617.0,0.08637134]
[1723939781235,0.6559373,59618.0,59617.0,0.0803075]
[1723939784754,0.7565773,59618.0,59617.0,0.0803075]
[1723939784959,0.7565773,59618.0,59617.0,0.0009075]
[1723939785808,0.7525773,59618.0,59617.0,0.0009075]
[1723939786047,0.8172773,59618.0,59617.0,0.0009075]
[1723939786247,0.91836843,59618.0,59617.0,0.0009075]
[1723939787370,0.8222773,59618.0,59617.0,0.0009075]
[1723939789521,0.7565773,59618.0,59617.0,0.0009075]
[1723939790609,0.71484628,59618.0,59617.0,0.0009075]
[1723939790782,0.75656799,59618.0,59617.0,0.0009075]
[1723939791337,0.75656863,59618.0,59617.0,0.0009075]
[1723939796519,0.96566889,59618.0,59617.0,0.0009075]
[1723939796747,1.13106889,59618.0,59617.0,0.0009075]
[1723939797521,1.02760863,59618.0,59617.0,0.0009075]
[1723939801454,0.93410863,59618.0,59617.0,0.0009075]